Cogmind - Beta 14 @@@ ROGUE MODE // 2024.10.11 @ 17:41:15 Player: Glitch Artist Result: Destroyed by G-34 Mercenary with Small Laser Performance ------------- Evolutions (0) 0 Regions Visited (1) 200 Robots Destroyed (3) 15 Value Destroyed (112) 112 Prototype IDs (2) 40 Alien Tech Used (0) 0 Bonus (0) 0 TOTAL SCORE: 367 Bonus ------- None Cogmind --------- Core Integrity 0/250 Matter 286/300 Energy 299/300 System Corruption 1% Temperature Cool (6) Movement Core (150) Ox2 Location -10/Materials Parts ------- > --- POWER (1) -------- (None) > --- PROPULSION (2) --- (None) > --- UTILITY (2) ------ Small Storage Unit Large Battery > --- WEAPON (2) ------- (None) > --- INVENTORY (8) ---- Heat Sink Medium Matter Pod (0) Light Armor Plating Datajack Peak State ------------ > --- POWER ------------ Ion Engine > --- PROPULSION ------- Wheel Wheel > --- UTILITY ---------- Small Storage Unit Small Storage Unit > --- WEAPON ----------- Small Laser Assault Rifle > --- INVENTORY -------- (None) [Rating: 7] Favorites ----------- Power Ion Engine Engine Ion Engine Propulsion Wheel Wheel Wheel Utility Small Storage Unit Storage Small Storage Unit Weapon Small Laser Energy Gun Small Laser Ballistic Gun Assault Rifle Launcher Grenade Launcher Build | -11 -10 ------- Run | Yrd Mat Slots Evolved . | . . Power . | . . Propulsion . | . . Utility . | . . Weapon . | . . Parts Attached 11 | 6 5 Power 1 | 1 . Engine 1 | 1 . Core . | . . Reactor . | . . Propulsion 2 | 2 . Treads . | . . Leg . | . . Wheel 2 | 2 . Hover . | . . Flight . | . . Utility 4 | 1 3 Device . | . . Storage 4 | 1 3 Processor . | . . Hackware . | . . Protection . | . . Artifact . | . . Weapon 4 | 2 2 Energy Gun 2 | 1 1 Energy Cannon . | . . Ballistic Gun 1 | 1 . Ballistic Cannon . | . . Launcher 1 | . 1 Special Weapon . | . . Impact Weapon . | . . Slashing Weapon . | . . Piercing Weapon . | . . Special Melee Weapon . | . . Unidentified Prototypes . | . . Parts Lost 5 | . 5 Power 1 | . 1 Propulsion 2 | . 2 Utility . | . . Weapon 2 | . 2 Highest Loss Streak 5 | . 5 To Critical Strikes . | . . Average Slot Usage (%) 91 | . 91 Engine 12 | . 12 Wheel 24 | . 24 Storage 27 | . 27 Energy Gun 12 | . 12 Ballistic Gun 11 | . 11 Launcher 1 | . 1 Peak Build Rating 7 | 6 7 Average Rating 6 | 4 6 On Entrance 3 | . 6 Naked Turns . | . . Heaviest Build 18 | 13 18 Greatest Support 20 | 20 20 Greatest Overweight (x) 4 | . 4 Average Overweight (x) . | . . Largest Inventory Capacity 8 | 8 8 Average Capacity 7 | 6 8 Most Carried 6 | 2 6 Average Carried 1 | . 2 Final Capacity 8 | 8 8 Final Carried 4 | . 4 Class Distribution -------------------- 100% | Mutant Dominant Class ---------------- Mutant | -10/Materials Resources | -11 -10 ----------- Run | Yrd Mat Matter Collected 294 | 249 45 Remotely . | . . Salvage Created 122 | . 122 Parts 6 | . 6 Haulers Intercepted . | . . Recyclers Shooed . | . . Parts Field Recycled . | . . Retrieved Matter . | . . Parts Self-Destructed . | . . Prevented . | . . Kills | -11 -10 ------- Run | Yrd Mat Combat Hostiles Destroyed 3 | . 3 Guns 3 | . 3 Classes Destroyed 1 | . 1 Grunt 3 | . 3 Best Kill Streak 2 | . 2 Combat Bots Only 2 | . 2 Max Kills in Single Turn 1 | . 1 Gunslinging . | . . Exploded . | . . Melee . | . . Uniques/NPCs Destroyed . | . . Combat | -11 -10 -------- Run | Yrd Mat Hostile Shots Fired 86 | . 86 Missed 30 | . 30 Damage Taken 666 | . 666 Core 252 | . 252 Absorbed by Shields . | . . Core Remaining (%) 100 | 100 . Volleys Fired 19 | . 19 Largest 2 | . 2 Hottest 70 | . 70 Shots Fired 34 | . 34 Gun 33 | . 33 Cannon . | . . Launcher 1 | . 1 Special . | . . Kinetic 14 | . 14 Thermal 19 | . 19 Explosive 1 | . 1 Electromagnetic . | . . Robot Hit Streak 8 | . 8 Robot Miss Streak 4 | . 4 Penetration Max . | . . Secondary Targets . | . . Shots Hit Robots 18 | . 18 Core Hits 7 | . 7 Critical Kills . | . . Critical Parts Destroyed . | . . Critical Strikes . | . . Melee Attacks . | . . Impact . | . . Slashing . | . . Piercing . | . . Sneak Attacks . | . . Combat Hostiles . | . . Follow-up Attacks . | . . Damage Inflicted 335 | . 335 Guns 201 | . 201 Cannons . | . . Explosions 76 | . 76 Melee . | . . Ramming 58 | . 58 Kinetic 127 | . 127 Thermal 74 | . 74 Explosive 76 | . 76 Electromagnetic . | . . Impact . | . . Slashing . | . . Piercing . | . . Highest Corruption 1 | . 1 Average Corruption 1 | . 1 Corruption Purged . | . . Corruption Blocked . | . . Effects 1 | . 1 Heat Flow Errors 1 | . 1 Overload Shots . | . . Overflow Damage 3 | . 3 Projectiles . | . . Explosions 3 | . 3 Melee . | . . Knockbacks . | . . Impact . | . . Kinetic . | . . Secondary . | . . Self-Inflicted Damage 49 | . 49 Shots 1 | . 1 Rammed 9 | . 9 Targets Rammed 9 | . 9 Kicked . | . . Crushed . | . . Highest Temperature 290 | . 290 Average Temperature 68 | . 68 Received Heat Transfer 336 | . 336 Effects 2 | . 2 Interference 2 | . 2 Siege Activations . | . . Robots Corrupted . | . . Combat Hostiles . | . . Parts Fried . | . . Impact Corruptions . | . . Robots Melted . | . . Combat Hostiles . | . . Parts Melted 1 | . 1 Heat Transferred 175 | . 175 Parts Sabotaged . | . . Parts Stolen . | . . Parts Stripped . | . . Power Chain Reactions . | . . Alert | -11 -10 ------- Run | Yrd Mat Peak Influence 82 | . 82 Initial . | . . Average 34 | . 37 Maximum Alert Level . | . . Low Security (%) 100 | 100 100 Level 1 . | . . Level 2 . | . . Level 3 . | . . Level 4 . | . . Level 5 . | . . High Security . | . . Max Security . | . . Squads Dispatched 3 | . 3 Investigation 2 | . 2 Extermination . | . . Reinforcement 1 | . 1 Assault . | . . Garrison . | . . Intercept . | . . Searches Triggered . | . . Construction Impeded . | . . Haulers Reinforced . | . . Active Scanning Responses . | . . Cargo Convoy Interrupts . | . . Stealth | -11 -10 --------- Run | Yrd Mat Distress Signals . | . . Communications Jammed . | . . Distress Signals . | . . Times Spotted 15 | . 15 Peak Tracking Total 5 | . 5 Tactical Retreats 1 | . 1 Traps | -11 -10 ------- Run | Yrd Mat Traps Triggered 1 | . 1 Indirectly . | . . Trap Hack Attempts . | . . Triggered . | . . Disarmed . | . . Reprogrammed . | . . Reused . | . . Traps Extracted . | . . Installed . | . . Triggered . | . . Machines | -11 -10 ---------- Run | Yrd Mat Machines Disabled 1 | . 1 Max in Single Turn 1 | . 1 Machines Repaired . | . . Machines Dismantled . | . . Machines Sabotaged . | . . Overloaded Fab Kills . | . . Hacking | -11 -10 --------- Run | Yrd Mat Machines Accessed 4 | . 4 Terminals 3 | . 3 Fabricators . | . . Repair Stations . | . . Recycling Units 1 | . 1 Scanalyzers . | . . Garrison Access . | . . Total Hacks 15 | . 15 Successful 6 | . 6 Failed 9 | . 9 Catastrophic 2 | . 2 Database Lockouts . | . . Manual 4 | . 4 Terminals 11 | . 11 Fabricators . | . . Repair Stations . | . . Recycling Units 4 | . 4 Scanalyzers . | . . Garrison Access . | . . Terminal Hacks 4 | . 4 Prototype ID Bank 1 | . 1 Unreport Threat 1 | . 1 Transport Status 1 | . 1 Zone Layout 1 | . 1 Fabricator Hacks . | . . Repair Station Hacks . | . . Recycling Unit Hacks 2 | . 2 Report Inventory 1 | . 1 Retrieve Components 1 | . 1 Scanalyzer . | . . Garrison Access Hacks . | . . Unauthorized Hacks . | . . Terminals . | . . Fabricators . | . . Repair Stations . | . . Recycling Units . | . . Scanalyzers . | . . Garrison Access . | . . Data Cores Recovered . | . . Used . | . . Hacking Detections 4 | . 4 Full Trace Events 1 | . 1 Feedback Events . | . . Feedback Blocked . | . . Robot Schematics Acquired . | . . Robots Built . | . . Authchips . | . . Time . | . . Total Robot Build Rating . | . . Part Schematics Acquired . | . . Parts Built . | . . Authchips . | . . Time . | . . Total Part Build Rating . | . . Parts Repaired . | . . Time . | . . Parts Recycled . | . . Recycled Matter . | . . Retrieved Matter . | . . Retrieved Components 5 | . 5 Parts Scanalyzed . | . . Part Schematics Acquired . | . . Parts Damaged . | . . Bothacking | -11 -10 ------------ Run | Yrd Mat Used RIF Installer . | . . Robots Hacked . | . . Non-combat . | . . Combat . | . . Robot Hacks Applied . | . . Relay Couplers Released . | . . Fabnet Peak Effective % . | . . Robots Rewired . | . . Allies Hacked . | . . Hacks Repelled . | . . Allies | -11 -10 -------- Run | Yrd Mat Total Allies . | . . Largest Group . | . . Highest-Rated Group . | . . Highest-Rated Ally . | . . Total Orders . | . . Ally Attacks . | . . Total Damage . | . . Kills . | . . Allies Corrupted . | . . Allies Melted . | . . Intel | -11 -10 ------- Run | Yrd Mat Robot Analysis Total . | . . Derelict Logs Recovered . | . . Drone Launches . | . . Drone Recoveries . | . . Exploration | -11 -10 ------------- Run | Yrd Mat Turns Passed 440 | 39 401 Spaces Moved 407 | 36 371 Core 30 | 5 25 Treads . | . . Legs . | . . Wheels 377 | 31 346 Hover . | . . Flight . | . . Fastest Speed 50 | 50 80 Average Speed 84 | 75 85 Slowest Speed 250 | 80 250 Overloaded Moves . | . . Propulsion Burnouts . | . . Robots Hopped . | . . Cave-ins Triggered . | . . Exploration Rate (%) 22 | 2 42 Regions Visited 1 Branch Regions . Pre-discovered Areas . | . . Known Exits Taken . | . . Unknown Exits Taken 1 | 1 . Scrap Searched . | . . Spaces Dug . | . . Terrain Destroyed 7 | . 7 Melee . | . . Projectile . | . . AOE 7 | . 7 Terrain Rammed . | . . Walls Destroyed . | . . Machines Disabled . | . . Actions | -11 -10 --------- Run | Yrd Mat Total 468 | 47 421 Wait 6 | . 6 Move 406 | 35 371 Hop . | . . Pick Up 14 | 6 8 Fast Attach . | . . Attach 8 | 6 2 Detach . | . . Swap 3 | . 3 Drop 3 | . 3 Fire 19 | . 19 Melee . | . . Ram 9 | . 9 Kick . | . . Crush . | . . Escape Stasis . | . . Rewire . | . . Trap . | . . Miscellaneous . | . . Route ------- -11/Scrapyard -10/Materials (discovered 1 exit: [*Mat]) History --------- Turn | Location | Event 2 | -11/Scrapyard | Discovered new exit (range 16) 40 | -11/Scrapyard | Entered Materials 304 | -10/Materials | Build established: Mutant 316 | -10/Materials | Discovered new exit (range 7) 412 | -10/Materials | Core integrity fell below 50% 434 | -10/Materials | Core integrity fell below 20% 437 | -10/Materials | Lost 5 parts (1p2n2w) 441 | -10/Materials | Destroyed by G-34 Mercenary with Small Laser Last Messages --------------- 00361_ ALERT: Suspicious activity at Recycling Unit M001. Dispatching Investigation squad. 00361_ Acquired Grenade Launcher. 00363_ Acquired Sml. Laser. 00367_ Dropped Sml. Laser. 00368_ Dropped Assault Rifle. 00371_ Triggered Alarm Trap. 00371_ An alarm sounds. 00371_ ALERT: Alarm triggered, dispatching investigation squad. 00391_ Processing Tank disabled. 00391_ Wheel destroyed. 00391_ Destroyed Wheel. 00394_ Grenade Launcher destroyed. 00396_ Wheel destroyed. 00406_ Sml. Laser destroyed. 00406_ G-34 Mercenary destroyed. 00406_ Ion Engine destroyed. 00421_ Slammed into U-05 Engineer. 00431_ M-13 Machinist repairs G-34 Mercenary. Map ----- +----------------------------------------------------+ | ??????# #?# # T #???????????????????????? | | ??????# #?# # #???????????????????????? | | ??????#+##+######?# # #???????????????????????? | | ??????# #??????# # #???????????????????????? | | ??????# #??????# # #???????????????????????? | | ??????# #??????# # #???????????????????????? | | ##????# #??????# #! #???????????????????????? | | #????# #??????# # * #???????????????????????? | | ###### ######## #+#######????????????????????? | | + % * #????????????????????? | | ################## = #????????????????????? | | |##########???????# #????????????????????? | | # #???????# ### #????????????????????? | | # #???????# #?# #????????????????????? | | # #???????# #?# #????#######?????????? | | # #???#####+### #????# ! #?????????? | | ## #???# # #????# #?????????? | | + #???# # k #????# " #?????????? | | ## #???# # ###### """ #?????????? | | ## #???# # # """ #?????????? | | ## #???# """ # # """ #?????????? | | ######+####???#""""" + ug "" #?????????? | | #### #????#""""" # # """ #?????????? | | #????#""""" # m# "" #?????????? | | T #????# """ # g # "" #?????????? | | #????# # @ gg# " #?????????? | | # ## #????# # ##### # #?????????? | | #+### ##????######### < #???# ###?????????? | | # #?????# #??# #???# %= #?????????? | | """ + #?????# "" #??########?# * #?????????? | | """ # #?????#!Y" ####### ### " #?????????? | | """ # #?????#="" + + "" #?????????? | | """ #####?????# [[ ####### ##### """ #?????????? | | """ #?????????# = #?????#####???# """ #?????????? | | #?????????# #?????????????# #?????????? | | #####?????????######?????????????#######?????????? | | ?????????????????????????????????????????????????? | | | | | | | | | | | | | | | | | | | | | | | | | | | +----------------------------------------------------+ Best States ------------- Heat Dissipation 25 Energy Generation 10 Energy Capacity 450 Matter Stores 300 Matter Capacity 300 Sight Range 16 Terrain Scan Density 10 Evasion (%) 44 Item Schematics ----------------- None Robot Schematics ------------------ None Fabricated ------------ Nothing Alien Tech Used ----------------- None Achievements -------------- None Challenges ------------ None Game ------ Seed ExoskeletonBiocellCoupler Manual? 0 Play Time 00:09:54 Cumulative 3.7 hours Start 2024.10.11 @ 17:31:20 End 2024.10.11 @ 17:41:15 Sessions 1 Manual Loads 0 Difficulty Rogue Special Mode None Game No. 4 Rogue 2 Adventurer 0 Explorer 2 Win Type - Total 0 Types 0/0/0/0/0/0/0/0/0 Lore% 2 Gallery% 11 Achievement% 14 Wizard Run 0 Options --------- Layout 1 ASCII 0 Keyboard 0 Movement Arrows Keybinds 0 Fullscreen 2 Font 24/X11 Map View 50x35 Zoom Use 0% Tactical HUD 1 Map Filters NONE Filters NONE Steam 1 RUN: e966f390-f407-423c-86f5-245278730328